bitfinex-derivatives/quotes_SOLF0:USTF0_20241217
["timestamp","ask_amount","ask_price","bid_price","bid_amount"]
[1734406056829,7.3247746,215.18,215.11,9.4647746]
[1734406057028,0.74733149,215.17,215.11,9.4647746]
[1734406058528,2.3239,215.15,215.11,9.4647746]
[1734406058933,2.3239,215.15,215.13,7.3247746]
[1734406061434,2.3235,215.18,215.13,7.3247746]
[1734406061629,2.3235,215.18,215.15,7.3247746]
[1734406061833,2.3235,215.18,215.15,9.4647746]
[1734406063431,2.3236,215.17,215.15,9.4647746]
[1734406064430,2.3237,215.16,215.15,2.14]
[1734406064631,7.3247746,215.21,215.14,2.14]
[1734406064934,0.74725362,215.2,215.14,2.14]
[1734406065638,2.3238,215.15,215.14,2.14]
[1734406066927,7.3247746,215.19,215.11,9.4647746]
[1734406066928,2.3241,215.13,215.11,9.4647746]
[1734406068731,2.3241,215.12,215.11,7.3247746]
[1734406068935,7.3247746,215.17,215.1,2.14]
[1734406069131,2.3243,215.11,215.06,5.57116949]
[1734406069331,7.3247746,215.15,215.08,7.3247746]
[1734406069530,7.3247746,215.15,215.08,9.4647746]
[1734406070331,2.3242,215.12,215.08,9.4647746]
[1734406070639,8.24748225,215.16,215.08,9.4647746]
[1734406070841,8.24748225,215.16,215.1,7.3247746]
[1734406070842,2.3239,215.14,215.1,7.3247746]
[1734406071043,8.24748225,215.16,215.1,7.3247746]
[1734406071339,1.6478,215.16,215.1,7.3247746]
[1734406071542,0.747349,215.15,215.1,7.3247746]
[1734406072432,1.6478,215.16,215.1,7.3247746]
[1734406072634,258.78670477,215.23,215.14,7.3247746]
[1734406072834,7.35421334,215.22,215.17,7.3247746]
[1734406073042,0.74729612,215.21,215.17,7.3247746]
[1734406073538,2.3235,215.18,215.17,7.3247746]
[1734406073734,2.3235,215.18,215.15,7.3247746]
[1734406073735,3.07079612,215.18,215.15,7.3247746]
[1734406074040,2.3237,215.16,215.14,2.14]
[1734406075046,6.60691722,215.21,215.14,2.14]
[1734406075243,2.3236,215.17,215.14,2.14]
[1734406077442,2.3236,215.17,215.15,7.3247746]
[1734406079241,2.3237,215.16,215.15,7.3247746]
[1734406079444,7.3247746,215.2,215.13,2.14]
[1734406079747,0.74727939,215.19,215.13,2.14]
[1734406080551,2.3238,215.15,215.13,2.14]
[1734406080848,7.3247746,215.18,215.12,7.3247746]
[1734406081047,0.74728529,215.17,215.12,7.3247746]
[1734406081252,0.74728544,215.16,215.12,7.3247746]
[1734406081448,0.74728544,215.15,215.12,7.3247746]
[1734406081652,7.3247746,215.18,215.12,7.3247746]
[1734406081854,0.74727503,215.17,215.12,7.3247746]
[1734406082446,2.3239,215.14,215.12,7.3247746]
[1734406082654,6.60691722,215.17,215.11,2.14]
[1734406082847,0.74729924,215.16,215.11,2.14]
[1734406083053,2.324,215.13,215.11,2.14]
[1734406083554,2.324,215.13,215.1,7.3247746]
[1734406083756,2.3242,215.12,215.1,7.3247746]
[1734406084156,2.3242,215.12,215.08,9.4647746]
[1734406084349,2.3243,215.11,215.08,9.4647746]
[1734406088253,2.3243,215.11,215.1,7.3247746]
[1734406088651,2.3241,215.13,215.1,7.3247746]
[1734406091857,2.3239,215.14,215.1,7.3247746]
[1734406093757,7.3247746,215.16,215.1,2.14]
[1734406094257,0.7474054,215.15,215.1,2.14]
[1734406094762,0.74740974,215.14,215.1,2.14]
[1734406094960,2.3244,215.09,215.02,2.3252]
[1734406095158,7.3247746,215.09,215.02,7.3247746]
[1734406095665,1.6298,215.12,215.02,7.3247746]
[1734406095859,7.3247746,215.09,215.02,7.3247746]
[1734406096064,8.19558878,215.11,215.02,7.3247746]
[1734406096359,8.9085746,215.11,215.02,7.3247746]
[1734406097158,8.9085746,215.11,215.03,2.14]
[1734406097159,2.3247,215.07,215.03,2.14]
[1734406097355,2.3247,215.07,215.04,7.3247746]
[1734406099258,2.3247,215.07,215.03,9.4647746]
[1734406101062,2.3248,215.06,215.03,9.4647746]
[1734406101262,7.3247746,215.09,215.03,2.14]
[1734406101766,2.3251,215.03,215.01,2.18]
[1734406101963,2.3251,215.03,215.0,9.5047746]
[1734406102460,2.3252,215.02,215.0,2.18]
[1734406103065,2.3253,215.01,215.0,2.18]
[1734406103560,2.3253,215.01,214.99,2.18]
[1734406104267,2.3254,215.0,214.99,2.18]
[1734406107364,2.3251,215.03,214.99,2.18]
[1734406107566,8.17754756,215.11,215.03,7.3247746]
[1734406107865,1.5838,215.11,215.05,7.3247746]
[1734406108164,1.5838,215.11,215.03,2.18]
[1734406108362,1.5838,215.11,215.04,7.3247746]
[1734406108363,0.7475379,215.1,215.04,7.3247746]
[1734406108559,8.9085746,215.11,215.04,7.3247746]
[1734406108768,2.3245,215.09,215.04,7.3247746]
[1734406108970,8.9085746,215.11,215.04,7.3247746]
[1734406109163,0.74751078,215.1,215.04,7.3247746]
[1734406109465,2.3248,215.07,215.04,7.3247746]
[1734406112472,2.3248,215.06,215.03,2.18]
[1734406113374,7.3247746,215.1,215.03,2.18]
[1734406113375,2.325,215.04,215.03,2.18]
[1734406114265,7.3247746,215.09,215.03,2.18]
[1734406114465,0.74759926,215.08,215.03,2.18]
[1734406114773,1.5838,215.11,215.03,2.18]
[1734406115074,7.3247746,215.09,215.03,2.18]
[1734406115270,0.74759924,215.08,215.01,2.18]
[1734406115572,7.3247746,215.07,215.0,9.5047746]
[1734406115769,7.3247746,215.07,215.0,7.3247746]
[1734406116577,2.325,215.05,215.0,7.3247746]
[1734406117374,7.3247746,215.07,215.0,7.3247746]
[1734406117375,2.325,215.04,215.0,7.3247746]
[1734406118179,7.3247746,215.07,215.0,7.3247746]
[1734406118374,2.3251,215.03,215.0,7.3247746]
[1734406123083,7.3247746,215.09,215.02,7.3247746]
[1734406123583,7.3247746,215.09,215.03,2.18]
[1734406124276,2.3248,215.07,215.03,2.18]
[1734406124480,7.3247746,215.09,215.03,2.18]
[1734406124673,1.5838,215.11,215.0,7.3247746]
[1734406124674,7.3247746,215.07,215.0,7.3247746]
[1734406124878,7.3247746,215.07,215.0,2.18]
[1734406125582,2.3251,215.04,215.0,2.18]
[1734406127084,7.3247746,215.04,214.98,2.18]
[1734406127779,7.3247746,215.04,214.97,7.3247746]
[1734406127981,2.3254,215.01,214.97,9.5047746]
[1734406128187,7.3247746,215.02,214.85,3.0296]
[1734406128379,2.3257,214.98,214.93,7.3247746]
[1734406128587,2.3257,214.98,214.93,9.5047746]
[1734406130284,7.3247746,215.02,214.93,9.5047746]
[1734406130580,2.3257,214.97,214.94,2.22]
[1734406132378,8.9482746,215.04,214.95,7.3247746]
[1734406132585,8.9482746,215.04,214.97,7.3247746]
[1734406133283,2.3252,215.02,214.97,7.3247746]
[1734406133485,8.9482746,215.04,214.97,7.3247746]
[1734406134985,7.3247746,215.06,214.99,7.3247746]
[1734406135286,7.3247746,215.08,215.01,7.3247746]
[1734406136289,2.3248,215.06,215.01,7.3247746]
[1734406138191,2.3247,215.07,215.01,9.6500746]
[1734406138487,7.3247746,215.1,215.03,7.3247746]
[1734406138788,2.3246,215.08,215.03,7.3247746]
[1734406141998,8.8207746,215.11,215.03,7.3247746]
[1734406142187,2.3244,215.1,215.03,9.6497746]
[1734406142395,2.3244,215.1,215.05,7.3247746]
[1734406142596,2.3244,215.1,215.06,2.22]
[1734406145490,7.3247746,215.11,215.06,2.22]
[1734406145691,2.3245,215.09,215.06,2.22]
[1734406146494,2.3246,215.08,215.06,2.22]
[1734406146698,7.3247746,215.09,215.06,2.22]
[1734406147303,2.3246,215.08,215.06,2.22]
[1734406148503,2.3248,215.06,215.05,2.22]
[1734406150896,7.3247746,215.09,215.02,7.3247746]
[1734406151098,2.3249,215.05,215.03,2.22]
[1734406154801,7.3247746,215.09,215.03,2.22]
[1734406155099,2.3248,215.06,215.03,2.22]
[1734406160402,2.3242,215.12,215.06,2.3247]
[1734406160607,7.3247746,215.14,215.07,7.3247746]
[1734406160806,7.3247746,215.14,215.08,2.2]
[1734406161407,2.3242,215.11,215.08,2.2]
[1734406171407,2.3241,215.13,215.08,2.2]
[1734406171609,7.3247746,215.14,215.08,2.2]
[1734406172406,2.3243,215.11,215.08,2.2]
[1734406174312,2.3243,215.11,215.07,7.3247746]
[1734406174313,7.3247746,215.12,215.04,5.70609851]
[1734406174519,7.3247746,215.1,215.05,2.2]
[1734406175013,2.3246,215.08,215.05,2.2]
[1734406175212,7.3247746,215.1,215.05,2.2]
[1734406176108,5.48616085,215.15,215.05,2.2]
[1734406176314,2.3246,215.08,215.05,2.2]
[1734406176517,7.3247746,215.11,215.05,2.2]
[1734406176719,7.3247746,215.09,215.05,2.2]
[1734406176917,2.3248,215.06,215.05,2.2]
[1734406178313,2.3248,215.06,215.02,7.3247746]
[1734406178615,2.3248,215.06,215.03,2.2]
[1734406179518,7.3247746,215.07,215.03,2.2]
[1734406179717,2.3249,215.05,215.03,2.2]
[1734406179912,7.3247746,215.07,214.95,1.5375]
[1734406180112,2.3252,215.02,214.98,7.3247746]
[1734406180512,7.3247746,215.05,214.98,7.3247746]
[1734406180916,2.3253,215.01,214.98,7.3247746]
[1734406181214,2.3253,215.01,214.99,2.2]
[1734406181524,2.3254,215.0,214.99,2.2]
[1734406182021,2.3256,214.99,214.95,5.56397133]
[1734406182217,2.3256,214.99,214.96,2.2]
[1734406182917,2.3256,214.98,214.96,2.2]
[1734406183118,7.3247746,215.01,214.96,2.2]
[1734406184318,1.563,215.05,214.96,2.2]
[1734406184519,7.3247746,215.02,214.96,2.2]
[1734406185017,2.3255,214.99,214.96,2.2]
[1734406191621,1.563,215.05,214.96,2.2]
[1734406191622,2.3257,214.97,214.96,2.2]
[1734406192431,2.3256,214.98,214.96,2.2]
[1734406193222,7.3247746,214.98,214.83,1.5188]
[1734406193519,7.3247746,214.96,214.89,7.3247746]
[1734406193726,7.3247746,214.96,214.9,2.14]
[1734406193927,2.3263,214.93,214.9,2.14]
[1734406196726,5.53085729,215.04,214.92,7.3247746]
[1734406196929,7.3247746,215.02,214.95,7.3247746]
[1734406197133,7.3247746,215.02,214.96,2.14]
[1734406197732,5.53085729,215.04,214.96,2.14]
[1734406197733,12.85563189,215.04,214.96,2.14]
[1734406198535,2.3254,215.01,214.96,2.14]
[1734406201535,2.3254,215.01,214.97,7.3247746]
[1734406201839,12.85563189,215.04,214.97,7.3247746]
[1734406201840,2.3252,215.03,214.97,7.3247746]
[1734406202042,5.48616085,215.15,215.01,7.3247746]
[1734406202243,2.3246,215.08,215.02,2.14]
[1734406202434,0.74774178,215.07,215.02,2.14]
[1734406202635,3.1348,215.13,215.02,2.14]
[1734406202848,3.1348,215.13,214.9,3.1536]
[1734406202849,7.3247746,215.1,215.03,2.14]
[1734406203041,7.3247746,215.08,215.04,2.14]
[1734406203337,2.3248,215.07,215.04,2.14]
[1734406204144,7.3247746,215.1,215.04,2.14]
[1734406204446,2.3246,215.08,215.04,2.14]
[1734406205142,7.3247746,215.1,215.04,2.14]
[1734406205341,7.3247746,215.06,215.0,2.14]
[1734406205671,7.3247746,215.04,214.99,2.14]
[1734406207245,2.3252,215.02,214.99,2.14]
[1734406207638,2.3253,215.01,214.98,2.14]
[1734406207848,7.3247746,215.02,214.98,2.14]
[1734406208043,7.3247746,215.02,214.93,7.3247746]
[1734406208242,2.3257,214.98,214.94,2.14]
[1734406209144,2.3257,214.98,214.95,2.14]
[1734406211949,7.3247746,215.03,214.95,9.4647746]
[1734406213542,7.3247746,215.03,214.96,2.3258]
[1734406213543,2.3253,215.01,214.96,2.3258]
[1734406215458,2.3254,215.0,214.95,9.4647746]
[1734406217150,2.3254,215.0,214.95,11.7907746]
[1734406218551,2.3254,215.0,214.95,4.466]
[1734406218752,2.3255,214.99,214.95,11.7907746]
[1734406218951,7.3247746,215.01,214.95,2.14]
[1734406219254,2.3258,214.97,214.95,2.14]
[1734406219550,7.3247746,214.97,214.95,2.14]
[1734406220452,2.3258,214.96,214.95,2.14]
[1734406220657,7.3247746,214.97,214.9,9.6511746]
[1734406220957,2.3262,214.93,214.89,7.3247746]
[1734406221150,7.3247746,214.95,214.9,2.14]
[1734406221752,2.3263,214.92,214.9,2.14]
[1734406222548,7.3247746,214.95,214.9,2.14]
[1734406224156,2.3262,214.93,214.9,2.14]
[1734406225851,2.3259,214.96,214.91,7.3247746]
[1734406227159,2.3259,214.96,214.91,9.6511746]
[1734406231362,7.3247746,214.98,214.91,9.6511746]
[1734406231562,2.326,214.95,214.91,9.6511746]
[1734406237662,2.326,214.95,214.91,7.3247746]
[1734406237861,7.3247746,214.96,214.86,5.58588897]
[1734406238158,2.3263,214.93,214.88,7.3247746]
[1734406238564,2.3263,214.93,214.89,2.3266]
[1734406239267,2.3263,214.93,214.9,2.14]
[1734406246461,7.3247746,214.96,214.86,5.58588897]
[1734406246668,7.3247746,214.92,214.86,2.3269]
[1734406246968,7.3247746,214.92,214.87,2.14]
[1734406247265,7.3247746,214.92,214.65,192.0]
[1734406247469,7.3247746,214.87,214.81,2.14]
[1734406248966,7.3247746,214.87,214.8,9.6522746]
[1734406249175,7.3247746,214.87,214.81,2.14]
[1734406250068,2.3272,214.84,214.81,2.14]
[1734406250570,6.60202492,214.93,214.72,3.2433]
[1734406250571,2.3274,214.82,214.77,7.3247746]
[1734406250873,2.3274,214.82,214.78,2.14]
[1734406251271,7.3247746,214.83,214.78,2.14]
[1734406251975,7.3247746,214.83,214.76,7.3247746]
[1734406252174,7.3247746,214.83,214.77,2.14]
[1734406252676,2.3276,214.8,214.76,9.4647746]
[1734406253967,2.3276,214.8,214.76,2.14]
[1734406255276,7.3247746,214.81,214.76,2.14]
[1734406255576,7.3247746,214.79,214.5,13.97]
[1734406255777,7.3247746,214.79,214.72,7.3247746]
[1734406255973,2.3281,214.75,214.72,9.4647746]
[1734406256377,7.3247746,214.79,214.72,2.14]
[1734406256976,7.3247746,214.77,214.72,2.14]
[1734406257276,2.3281,214.75,214.72,2.14]
[1734406257677,2.3282,214.74,214.71,9.4647746]
[1734406258178,2.3282,214.74,214.7,2.14]
[1734406258575,2.3282,214.74,214.7,9.4647746]
[1734406258773,2.3282,214.74,214.7,2.14]
[1734406259182,2.328,214.77,214.72,7.3247746]
[1734406259480,7.3247746,214.79,214.71,2.3286]
[1734406259681,7.3247746,214.79,214.72,7.3247746]
[1734406260179,7.3247746,214.79,214.71,2.3286]
[1734406260380,7.3247746,214.79,214.73,7.3247746]
[1734406261479,2.328,214.76,214.73,7.3247746]
[1734406261874,7.3247746,214.79,214.7,2.14]
[1734406262371,7.3247746,214.77,214.7,9.4647746]
[1734406262775,7.3247746,214.77,214.7,2.14]
[1734406262974,7.3247746,214.77,214.71,2.14]
[1734406263580,2.3282,214.75,214.71,2.14]
[1734406264174,2.3282,214.75,214.7,7.3247746]
[1734406264373,2.3282,214.75,214.7,9.4647746]
[1734406264975,2.3282,214.74,214.7,9.4647746]
[1734406265976,2.3281,214.75,214.7,11.7934746]
[1734406269384,1.598,214.81,214.72,7.3247746]
[1734406269581,7.3247746,214.8,214.72,7.3247746]
[1734406270588,7.3247746,214.78,214.73,2.3283]
[1734406270789,7.3247746,214.78,214.74,2.14]
[1734406271289,7.3247746,214.8,214.74,2.14]
[1734406271588,2.3278,214.78,214.74,4.4682]
[1734406272185,7.3247746,214.8,214.74,2.14]
[1734406272391,2.328,214.77,214.74,2.14]
[1734406272684,7.3247746,214.78,214.7,7.3247746]
[1734406272989,7.3247746,214.76,214.69,15.00375227]
[1734406273581,2.3281,214.75,214.7,2.3286]
[1734406275294,2.3287,214.71,214.66,2.3291]
[1734406275489,7.3247746,214.72,214.67,2.14]
[1734406275791,2.14,214.8,214.67,2.14]
[1734406275991,2.3285,214.72,214.67,4.4689]
[1734406276591,2.3285,214.72,214.67,2.3289]
[1734406276788,2.14,214.8,214.68,2.14]
[1734406276994,7.3247746,214.73,214.69,2.3288]
[1734406277194,2.14,214.8,214.7,7.3247746]
[1734406277389,2.3279,214.77,214.72,2.3283]
[1734406277697,7.3247746,214.79,214.73,2.14]
[1734406277884,7.3247746,214.8,214.74,7.3247746]
[1734406278397,2.3278,214.79,214.74,9.6529746]
[1734406279093,2.3278,214.78,214.73,4.4683]
[1734406279391,2.3278,214.78,214.74,2.14]
[1734406281388,7.3247746,214.8,214.74,11.7929746]
[1734406281793,7.3247746,214.8,214.74,2.14]
[1734406283595,2.3278,214.78,214.74,2.14]
[1734406284297,2.3279,214.77,214.74,2.14]
[1734406284792,7.3247746,214.76,214.74,2.14]
[1734406284986,2.3282,214.75,214.71,2.14]
[1734406285791,2.3284,214.73,214.71,2.14]
[1734406285998,7.3247746,214.74,214.67,1.569]
[1734406286190,7.3247746,214.74,214.7,2.14]
[1734406286392,7.3247746,214.72,214.67,2.14]
[1734406286588,7.3247746,214.72,214.66,2.14]
[1734406287194,7.3247746,214.7,214.64,12.9940888]
[1734406287397,7.3247746,214.7,214.65,2.14]
[1734406287598,7.3247746,214.7,214.64,7.3247746]
[1734406287794,2.3289,214.69,214.65,2.14]
[1734406288194,7.3247746,214.7,214.65,2.14]
[1734406288396,2.3291,214.67,214.65,2.14]
[1734406288797,7.3247746,214.7,214.65,2.14]
[1734406289193,2.3291,214.66,214.6,9.6544746]
[1734406289393,7.3247746,214.68,214.61,2.14]
[1734406289596,2.3291,214.66,214.61,2.14]
[1734406289802,7.3247746,214.68,214.61,2.14]
[1734406290500,7.3247746,214.66,214.61,2.14]
[1734406290701,7.3247746,214.66,214.58,9.6546746]
[1734406290902,7.3247746,214.64,214.59,2.14]
[1734406291196,2.14,214.68,214.55,8.9354746]
[1734406291197,7.3247746,214.62,214.55,8.9354746]
[1734406291396,7.3247746,214.62,214.56,2.14]
[1734406292197,7.3247746,214.62,214.54,7.3247746]
[1734406292502,2.3298,214.6,214.55,2.14]
[1734406294505,2.3298,214.6,214.56,7.3247746]
[1734406296104,2.3294,214.63,214.58,7.3247746]
[1734406296299,1.5067,214.66,214.6,7.3247746]
[1734406296603,7.3247746,214.69,214.62,7.3247746]
[1734406297405,2.3293,214.65,214.62,7.3247746]
[1734406297598,2.3293,214.65,214.6,7.3247746]
[1734406299606,9.6538746,214.67,214.6,9.6544746]
[1734406299807,7.3247746,214.67,214.6,9.6544746]
[1734406300408,2.3292,214.65,214.6,9.6544746]
[1734406300609,2.3292,214.65,214.6,7.3247746]
[1734406301612,7.3247746,214.67,214.6,7.3247746]
[1734406303505,2.3293,214.65,214.6,7.3247746]
[1734406305613,7.3247746,214.67,214.6,7.3247746]
[1734406305614,2.3293,214.64,214.6,7.3247746]
[1734406308207,7.3247746,214.67,214.6,7.3247746]
[1734406308405,7.3247746,214.65,214.59,2.14]
[1734406308916,2.3294,214.63,214.59,2.14]
[1734406310614,2.3294,214.63,214.6,2.14]
[1734406314814,2.3294,214.63,214.6,9.4647746]
[1734406315419,7.3247746,214.68,214.6,11.7944746]
[1734406315720,1.5034,214.7,214.64,7.3247746]
[1734406315915,1.5034,214.7,214.64,9.4647746]
[1734406316519,2.329,214.68,214.64,9.4647746]
[1734406318323,1.5034,214.7,214.64,9.4647746]
[1734406318626,2.329,214.67,214.64,9.4647746]
[1734406318823,7.3247746,214.69,214.64,9.4647746]
[1734406319026,2.3291,214.67,214.64,2.14]
[1734406319627,2.3288,214.69,214.64,9.4647746]
[1734406320229,2.3289,214.68,214.64,9.4647746]
[1734406320423,7.3247746,214.71,214.64,9.4647746]
[1734406320624,7.3247746,214.71,214.64,2.14]
[1734406321725,7.3247746,214.67,214.64,2.14]
[1734406322022,2.3292,214.65,214.64,2.14]
[1734406322328,2.3292,214.65,214.62,2.14]
[1734406323225,2.3292,214.65,214.6,7.3247746]
[1734406323424,2.3292,214.65,214.61,2.14]
[1734406324339,2.3293,214.64,214.61,2.14]
[1734406327429,2.3293,214.64,214.6,7.3247746]
[1734406327625,2.3293,214.64,214.61,2.14]
[1734406328029,7.3247746,214.67,214.61,2.14]
[1734406328329,2.3295,214.62,214.61,2.14]
[1734406328727,2.3295,214.62,214.6,2.14]
[1734406330827,2.3297,214.61,214.57,7.3247746]
[1734406331128,2.3297,214.61,214.59,2.14]
[1734406331330,7.3247746,214.65,214.59,2.14]
[1734406332432,2.3297,214.61,214.59,2.14]
[1734406332827,7.3247746,214.66,214.59,9.4647746]
[1734406333228,2.3293,214.64,214.59,11.7945746]
[1734406333425,7.3247746,214.66,214.59,9.4647746]
[1734406334032,2.3295,214.62,214.59,9.4647746]
[1734406334637,3.2583,214.69,214.59,2.14]
[1734406334638,2.3297,214.61,214.59,2.14]
[1734406336734,2.3297,214.61,214.58,7.3247746]
[1734406336937,7.3247746,214.64,214.56,7.95679082]
[1734406337135,2.3298,214.6,214.57,3.30535724]
[1734406337326,7.3247746,214.62,214.54,2.3304]
[1734406337533,7.3247746,214.62,214.57,2.14]
[1734406338531,2.3299,214.59,214.57,2.14]
[1734406338737,2.14,214.67,214.57,9.4647746]
[1734406338940,7.3247746,214.64,214.57,9.4647746]
[1734406340234,6.63501753,214.68,214.59,7.3247746]
[1734406340537,3.2583,214.69,214.63,7.3247746]
[1734406340736,0.74923567,214.68,214.63,7.3247746]
[1734406341434,2.3291,214.66,214.63,7.3247746]
[1734406344837,2.3292,214.65,214.62,9.4647746]
[1734406347443,7.3247746,214.72,214.64,7.3247746]
[1734406347642,7.3247746,214.72,214.66,7.3247746]
[1734406347842,7.3247746,214.72,214.66,9.4647746]
[1734406349647,2.3288,214.69,214.66,9.4647746]
[1734406351846,2.3287,214.71,214.68,7.3247746]
[1734406352049,7.3247746,214.75,214.68,7.3247746]
[1734406352351,2.3283,214.74,214.7,7.3247746]
[1734406352646,12.1278746,214.77,214.71,2.14]
[1734406352947,2.3281,214.76,214.71,2.14]
[1734406353452,2.3281,214.76,214.72,7.3247746]
[1734406354550,2.3281,214.75,214.72,7.3247746]
[1734406354956,7.3247746,214.77,214.71,2.14]
[1734406356051,2.3281,214.76,214.71,4.4685]
[1734406356747,2.328,214.77,214.72,9.6531746]
[1734406357068,7.3247746,214.82,214.74,7.3247746]
[1734406357350,7.3247746,214.82,214.75,2.14]
[1734406357558,2.3277,214.79,214.75,2.14]
[1734406364049,4.751,214.87,214.76,7.3247746]
[1734406364257,1.5171,214.87,214.8,7.3247746]
[1734406364451,7.3247746,214.88,214.82,7.3247746]
[1734406364755,7.3247746,214.88,214.83,2.14]
[1734406365454,2.14,214.93,214.83,2.14]
[1734406365455,1.5806,214.95,214.83,2.14]
[1734406365656,7.3247746,214.91,214.84,7.3247746]
[1734406365850,3.7206,214.95,214.86,7.3247746]
[1734406365851,0.74841255,214.9,214.86,7.3247746]
[1734406366051,2.3264,214.92,214.87,2.14]
[1734406366251,0.74840444,214.91,214.87,2.14]
[1734406366559,0.74840444,214.9,214.87,2.14]
[1734406366857,7.3247746,214.93,214.87,2.14]
[1734406367173,0.74840618,214.92,214.87,2.14]
[1734406367561,7.3247746,214.93,214.87,2.14]
[1734406367562,2.3265,214.91,214.87,2.14]
[1734406368157,2.3266,214.9,214.87,2.14]
[1734406369255,7.3247746,214.91,214.87,2.14]
[1734406369552,7.3247746,214.88,214.84,2.14]
[1734406369755,7.3247746,214.86,214.84,2.14]
[1734406370853,7.3247746,214.86,214.82,2.14]
[1734406372261,2.3272,214.84,214.82,2.14]
[1734406372566,7.3247746,214.86,214.82,2.14]
[1734406373261,2.3271,214.85,214.82,2.14]
[1734406373462,7.3247746,214.86,214.82,2.14]
[1734406374058,2.3272,214.84,214.82,2.14]
[1734406376061,7.3247746,214.88,214.82,2.14]
[1734406376273,2.3273,214.83,214.82,2.14]
[1734406376874,7.3247746,214.85,214.82,2.14]
[1734406376875,2.3271,214.85,214.82,2.14]
[1734406377077,8.9240746,214.87,214.82,2.14]
[1734406378574,2.3271,214.85,214.82,2.14]
[1734406379369,8.9240746,214.87,214.82,2.14]
[1734406379574,2.3272,214.84,214.82,2.14]
[1734406379770,8.9240746,214.87,214.82,2.14]
[1734406380172,2.327,214.86,214.82,2.14]
[1734406380376,8.9240746,214.87,214.82,2.14]
[1734406380577,0.74846995,214.86,214.82,2.14]
[1734406380882,8.9240746,214.87,214.82,2.14]
[1734406380883,2.3273,214.83,214.82,2.14]
[1734406381973,2.3273,214.83,214.79,7.3247746]
[1734406381974,2.3275,214.81,214.8,2.14]
[1734406382177,7.3247746,214.83,214.75,7.3247746]
[1734406382383,7.3247746,214.81,214.72,1.6176]
[1734406382581,2.3279,214.77,214.73,9.4647746]
[1734406383187,2.3281,214.76,214.73,7.3247746]
[1734406383482,7.3247746,214.81,214.74,2.14]
[1734406384482,7.3247746,214.79,214.73,9.4647746]
[1734406384983,7.3247746,214.79,214.71,7.3247746]
[1734406385184,7.3247746,214.79,214.71,9.4647746]
[1734406385583,7.3247746,214.77,214.7,2.14]
[1734406385787,1.5779,214.76,214.69,9.4647746]
[1734406386085,7.3247746,214.75,214.69,9.4647746]
[1734406386485,2.3286,214.71,214.69,9.4647746]
[1734406386780,7.3247746,214.75,214.68,2.14]
[1734406387182,2.3288,214.69,214.68,2.14]
[1734406387384,2.3288,214.69,214.67,7.3247746]
[1734406387579,2.3289,214.68,214.67,7.3247746]
[1734406387785,2.3289,214.68,214.66,2.14]
[1734406387986,2.3289,214.68,214.65,7.3247746]
[1734406388187,2.3289,214.68,214.65,9.4647746]
[1734406389284,7.3247746,214.73,214.65,9.4647746]
[1734406389285,2.329,214.67,214.65,9.4647746]
[1734406389486,7.3247746,214.73,214.65,9.4647746]
[1734406390281,8.9026746,214.76,214.69,7.3247746]
[1734406390485,7.3247746,214.74,214.67,7.3247746]
[1734406392390,2.3288,214.7,214.67,7.3247746]
[1734406392587,7.3247746,214.74,214.66,2.14]
[1734406392793,7.3247746,214.72,214.66,2.14]
[1734406393391,2.3288,214.69,214.66,2.14]
[1734406395707,2.3289,214.68,214.66,2.14]
[1734406398811,2.329,214.67,214.66,2.14]
[1734406400008,7.3247746,214.7,214.64,2.14]
[1734406400208,7.3247746,214.68,214.64,2.14]
[1734406400719,2.3294,214.63,214.62,7.3247746]
[1734406400920,7.3247746,214.66,214.6,7.3247746]
[1734406401210,2.3295,214.63,214.6,7.3247746]
[1734406402503,2.3296,214.62,214.6,7.3247746]
[1734406405704,7.3247746,214.64,214.52,1.5732]
[1734406405897,2.3299,214.59,214.57,2.14]
[1734406406394,2.3296,214.62,214.57,9.4647746]